[Event "Ebbe Cup 48"]
[Site "Goteborgs Schackcentrum, Vegatan 20, Gothenburg, Sweden"]
[Date "2025.02.14"]
[Round "1.1"]
[White "Hitcher, Oscar"]
[Black "Karlsson, Stefan"]
[Result "0-1"]
[TimeControl "90 minutes + 30 seconds per move from move one"]
[WhiteFideId "1746901"]
[BlackFideId "1771183"]
[WhiteElo "1712"]
[BlackElo "2050"]

1. Nf3 {[%clk 01:30:52]} {[%emt 00:00:08]} Nf6 {[%clk 01:30:42]} {[%emt
00:00:19]} 2. d4 {[%clk 01:31:06]} {[%emt 00:00:16]} g6 {[%clk 01:31:01]}
{[%emt 00:00:10]} 3. e3 {[%clk 01:30:20]} {[%emt 00:01:15]} Bg7 {[%clk
01:31:24]} {[%emt 00:00:08]} 4. Bd3 {[%clk 01:30:06]} {[%emt 14:28:28]} O-O
{[%clk 01:31:25]} 5. b3 {[%clk 01:30:07]} d6 {[%clk 01:30:41]} 6. O-O {[%clk
01:29:41]} Nbd7 {[%clk 01:24:42]} 7. c4 {[%clk 01:27:56]} e5 {[%clk 01:24:45]}
8. dxe5 dxe5 {[%clk 01:23:50]} 9. Ba3 {[%clk 01:22:58]} e4 {[%clk 01:17:49]} 10.
Bxf8 {[%clk 01:20:49]} Nxf8 {[%clk 01:14:45]} 11. Nbd2 {[%clk 01:11:55]} Qxd3
{[%clk 01:09:42]} 12. Ne1 {[%clk 01:11:48]} Qd6 {[%clk 01:09:01]} 13. Rc1
{[%clk 01:11:59]} Qe5 {[%clk 00:55:23]} 14. Qc2 {[%clk 01:09:25]} Bg4 {[%clk
00:49:11]} 15. Nb1 {[%clk 01:08:25]} Ne6 {[%clk 00:47:30]} 16. h3 {[%clk
01:07:10]} Qh5 {[%clk 00:47:32]} 17. f3 {[%clk 01:01:50]} exf3 {[%clk
00:45:00]} 18. Nxf3 {[%clk 00:58:19]} Bf5 {[%clk 00:43:00]} 19. Qf2 {[%clk
00:55:03]} Bh6 {[%clk 00:39:28]} 20. Rce1 {[%clk 00:50:24]} Bxb1 {[%clk
00:35:45]} 21. Rxb1 {[%clk 00:50:15]} Ne4 {[%clk 00:35:58]} 22. Qe1 {[%clk
00:49:17]} Qc5 {[%clk 00:34:36]} 23. Nd4 {[%clk 00:47:15]} Nxd4 {[%clk
00:34:23]} 24. exd4 {[%clk 00:47:32]} Qxd4+ {[%clk 00:34:39]} 25. Kh2 {[%clk
00:47:42]} Nd2 {[%clk 00:31:30]} 26. Rd1 {[%clk 00:44:06]} Nxf1+ {[%clk
00:31:27]} 27. Qxf1 {[%clk 00:44:27]} Qf4+ {[%clk 00:31:25]} 28. Qxf4 {[%clk
00:44:36]} Bxf4+ {[%clk 00:31:45]} 29. g3 {[%clk 00:45:00]} Bd6 {[%clk
00:32:02]} 0-1

[Event "Ebbe Cup 48"]
[Site "Goteborgs Schackcentrum, Vegatan 20, Gothenburg, Sweden"]
[Date "2025.02.14"]
[Round "1.2"]
[White "Andren, Patrik"]
[Black "Evertsson, David"]
[Result "1-0"]
[TimeControl "90 minutes + 30 seconds per move from move one"]
[WhiteFideId "1767135"]
[BlackFideId "1777424"]
[WhiteElo "1959"]
[BlackElo "1710"]

1. e4 {[%clk 01:28:22]} {[%emt 00:02:38]} c5 {[%clk 01:30:52]} {[%emt
00:00:08]} 2. Nc3 {[%clk 01:28:45]} {[%emt 00:00:08]} Nc6 {[%clk 01:30:54]}
{[%emt 14:27:40]} 3. Bb5 {[%clk 01:28:50]} Nd4 {[%clk 01:30:32]} 4. d3 {[%clk
01:27:13]} a6 {[%clk 01:30:05]} 5. Bc4 {[%clk 01:27:14]} e6 {[%clk 01:29:05]} 6.
f4 {[%clk 01:24:12]} b5 {[%clk 01:23:02]} 7. Bb3 {[%clk 01:24:24]} Nf6 {[%clk
01:22:29]} 8. Nf3 {[%clk 01:23:39]} Bb7 {[%clk 01:17:10]} 9. O-O {[%clk
01:17:38]} Be7 {[%clk 01:15:45]} 10. Qe1 {[%clk 01:01:37]} Qc7 {[%clk
00:37:22]} 11. Nxd4 {[%clk 00:48:27]} cxd4 {[%clk 00:37:20]} 12. Ne2 {[%clk
00:48:44]} a5 {[%clk 00:28:09]} 13. a4 {[%clk 00:46:50]} b4 {[%clk 00:27:11]}
14. Nxd4 {[%clk 00:43:18]} Qb6 {[%clk 00:25:08]} 15. c3 {[%clk 00:34:07]} bxc3
{[%clk 00:22:04]} 16. bxc3 {[%clk 00:32:53]} Bc5 {[%clk 00:20:47]} 17. Bc4
{[%clk 00:32:12]} Bxd4+ {[%clk 00:20:27]} 18. cxd4 {[%clk 00:32:34]} Qxd4+
{[%clk 00:20:43]} 19. Be3 {[%clk 00:32:54]} Qd6 {[%clk 00:19:11]} 20. Qg3
{[%clk 00:29:36]} Nh5 {[%clk 00:18:24]} 21. Qg5 {[%clk 00:27:28]} g6 {[%clk
00:18:12]} 22. Bc5 {[%clk 00:25:28]} f6 {[%clk 00:16:30]} 23. Bxd6 {[%clk
00:25:21]} fxg5 {[%clk 00:16:49]} 24. fxg5 {[%clk 00:25:31]} Ng7 {[%clk
00:12:55]} 25. Rf2 {[%clk 00:23:44]} Rc8 {[%clk 00:07:17]} 26. Raf1 {[%clk
00:20:43]} Nf5 {[%clk 00:07:05]} 27. exf5 {[%clk 00:20:27]} gxf5 {[%clk
00:07:13]} 28. Rb2 {[%clk 00:19:09]} Bc6 {[%clk 00:06:38]} 29. h4 {[%clk
00:14:47]} Bxa4 {[%clk 00:02:35]} 30. Ba6 {[%clk 00:14:30]} Ra8 {[%clk
00:01:25]} 31. Bb7 {[%clk 00:14:18]} Rd8 {[%clk 00:00:47]} 32. Bc7 {[%clk
00:12:07]} Ke7 {[%clk 00:01:01]} 33. Bxd8+ {[%clk 00:12:02]} Rxd8 {[%clk
00:01:20]} 34. Ra1 {[%clk 00:12:17]} Bc6 {[%clk 00:01:20]} 35. Bxc6 {[%clk
00:12:34]} dxc6 {[%clk 00:01:46]} 36. Rb7+ {[%clk 00:12:42]} Kf8 {[%clk
00:01:36]} 37. Rxa5 {[%clk 00:13:04]} Kg8 {[%clk 00:01:31]} 38. Raa7 {[%clk
00:13:23]} e5 {[%clk 00:00:39]} 39. Rg7+ {[%clk 00:13:41]} Kf8 {[%clk
00:00:00]} 40. Raf7+ {[%clk 00:13:41]} Ke8 {[%clk 00:00:00]} 1-0

[Event "Ebbe Cup 48"]
[Site "Goteborgs Schackcentrum, Vegatan 20, Gothenburg, Sweden"]
[Date "2025.02.14"]
[Round "1.3"]
[White "Dahlin, Emil"]
[Black "Green, David"]
[Result "0-1"]
[TimeControl "90 minutes + 30 seconds per move from move one"]
[WhiteFideId "1771035"]
[BlackFideId "1769332"]
[WhiteElo "1698"]
[BlackElo "1892"]

1. e4 {[%clk 01:30:57]} {[%emt 00:00:02]} c5 {[%clk 01:30:33]} {[%emt
00:00:27]} 2. Nf3 {[%clk 01:31:03]} {[%emt 00:00:24]} e6 {[%clk 01:30:49]}
{[%emt 00:00:15]} 3. d4 {[%clk 01:31:25]} {[%emt 00:00:08]} cxd4 {[%clk
01:31:07]} {[%emt 00:00:12]} 4. Nxd4 {[%clk 01:31:43]} {[%emt 00:00:11]} Nf6
{[%clk 01:31:27]} {[%emt 00:00:11]} 5. Nc3 {[%clk 01:31:21]} {[%emt 00:00:52]}
Nc6 {[%clk 01:31:48]} {[%emt 00:00:07]} 6. Be3 {[%clk 01:30:10]} {[%emt
14:27:38]} Bb4 {[%clk 01:31:42]} 7. f3 {[%clk 01:28:05]} d5 {[%clk 01:25:03]} 8.
Nxc6 {[%clk 01:20:16]} bxc6 {[%clk 01:24:50]} 9. e5 {[%clk 01:18:03]} Nd7
{[%clk 01:24:07]} 10. f4 {[%clk 01:15:49]} Qa5 {[%clk 01:18:14]} 11. Bd2 {[%clk
01:08:37]} O-O {[%clk 01:04:14]} 12. a3 {[%clk 01:06:40]} Be7 {[%clk 01:02:17]}
13. h4 {[%clk 00:55:33]} Qb6 {[%clk 00:55:05]} 14. b4 {[%clk 00:48:04]} f6
{[%clk 00:35:06]} 15. exf6 {[%clk 00:31:08]} Bxf6 {[%clk 00:32:06]} 16. Na4
{[%clk 00:23:56]} Qd8 {[%clk 00:29:40]} 17. Nc3 {[%clk 00:19:01]} Bxh4+ {[%clk
00:28:10]} 18. Ke2 {[%clk 00:18:29]} d4 {[%clk 00:26:45]} 19. g3 {[%clk
00:16:16]} dxc3 {[%clk 00:23:05]} 20. Bxc3 {[%clk 00:14:34]} Bf6 {[%clk
00:20:33]} 21. Qd3 {[%clk 00:06:47]} g6 {[%clk 00:17:57]} 22. Bg2 {[%clk
00:06:19]} Qb6 {[%clk 00:15:27]} 23. Kf3 {[%clk 00:04:17]} Rd8 {[%clk
00:12:24]} 24. Qc4 {[%clk 00:03:53]} Re8 {[%clk 00:10:10]} 25. Rae1 {[%clk
00:03:24]} Ba6 {[%clk 00:09:30]} 26. Qb3 {[%clk 00:03:11]} Nc5 {[%clk
00:06:58]} 27. bxc5 {[%clk 00:01:41]} Qxb3 {[%clk 00:07:19]} 28. cxb3 {[%clk
00:02:04]} Bxc3 {[%clk 00:07:32]} 29. Rb1 {[%clk 00:01:01]} Red8 {[%clk
00:07:01]} 30. Rhd1 {[%clk 00:01:05]} Bd3 {[%clk 00:06:46]} 31. Bh3 {[%clk
00:00:38]} Kf7 {[%clk 00:06:28]} 32. Rbc1 {[%clk 00:00:33]} Bb2 {[%clk
00:06:53]} 33. b4 {[%clk 00:00:37]} Bxc1 {[%clk 00:07:09]} 34. Rxc1 {[%clk
00:00:59]} Bf5 {[%clk 00:07:26]} 35. Bf1 {[%clk 00:00:53]} h5 {[%clk 00:07:41]}
36. Ba6 {[%clk 00:00:43]} Rd2 {[%clk 00:07:49]} 37. Bb7 {[%clk 00:00:48]} Rad8
{[%clk 00:08:16]} 38. Re1 {[%clk 00:00:51]} R8d3+ {[%clk 00:08:03]} 39. Re3
{[%clk 00:00:49]} Bg4+ {[%clk 00:08:20]} 40. Ke4 {[%clk 00:01:14]} Rd4+ {[%clk
00:08:37]} 41. Ke5 {[%clk 00:01:24]} Rd5+ {[%clk 00:08:52]} 0-1

[Event "Ebbe Cup 48"]
[Site "Goteborgs Schackcentrum, Vegatan 20, Gothenburg, Sweden"]
[Date "2025.02.14"]
[Round "1.4"]
[White "Christoforidis, Nicolas"]
[Black "Pettersson, Lennart"]
[Result "1-0"]
[TimeControl "90 minutes + 30 seconds per move from move one"]
[WhiteFideId "1789180"]
[BlackFideId "1791419"]
[WhiteElo "1886"]
[BlackElo "1691"]

1. d4 {[%clk 01:30:29]} {[%emt 00:00:08]} d5 {[%clk 01:31:00]} 2. Bf4 {[%clk
01:30:40]} {[%emt 00:00:40]} f6 {[%clk 01:30:49]} {[%emt 00:00:39]} 3. e3
{[%clk 01:30:07]} {[%emt 00:01:06]} Nc6 {[%clk 01:31:01]} {[%emt 00:00:18]} 4.
Nf3 {[%clk 01:26:54]} {[%emt 14:27:37]} Bf5 {[%clk 01:29:54]} 5. Nh4 {[%clk
01:23:06]} Qd7 {[%clk 01:29:34]} 6. Nxf5 {[%clk 01:20:10]} Qxf5 {[%clk
01:29:33]} 7. Bd3 {[%clk 01:20:22]} Qd7 {[%clk 01:29:00]} 8. Qh5+ {[%clk
01:20:35]} Kd8 {[%clk 01:27:52]} 9. Qf7 {[%clk 01:18:14]} Nh6 {[%clk 01:27:09]}
10. Bxh6 {[%clk 01:18:44]} gxh6 {[%clk 01:25:14]} 11. Bxh7 {[%clk 01:18:20]}
Qe8 {[%clk 01:25:12]} 12. Qxd5+ {[%clk 01:18:20]} Kc8 {[%clk 01:24:49]} 13.
Bf5+ {[%clk 01:17:06]} Kb8 {[%clk 01:24:41]} 14. Qe6 {[%clk 01:17:13]} a6
{[%clk 01:23:57]} 15. Nc3 {[%clk 01:16:09]} Bg7 {[%clk 01:22:59]} 16. a3 {[%clk
01:13:51]} Na7 {[%clk 01:19:48]} 17. Nd5 {[%clk 01:13:11]} Bf8 {[%clk
01:19:00]} 18. Nxf6 {[%clk 01:13:27]} Qc6 {[%clk 01:18:13]} 19. Nd7+ {[%clk
01:11:11]} Kc8 {[%clk 01:18:00]} 20. Nxf8+ {[%clk 01:10:14]} Qxe6 21. Nxe6 Rg8
{[%clk 01:16:54]} 22. Nc5+ {[%clk 01:08:26]} Kb8 {[%clk 01:16:51]} 23. Nd7+
{[%clk 01:08:42]} Kc8 24. Nb6+ Kb8 {[%clk 01:16:23]} 25. Nxa8 {[%clk 01:09:06]}
Kxa8 26. g4 Nb5 {[%clk 01:14:55]} 27. Rg1 {[%clk 01:08:38]} Nd6 {[%clk
01:15:05]} 28. Bd3 {[%clk 01:08:52]} Nf7 {[%clk 01:13:58]} 29. h4 {[%clk
01:09:10]} e6 {[%clk 01:13:40]} 30. f4 {[%clk 01:09:17]} h5 {[%clk 01:13:47]}
31. g5 {[%clk 01:09:32]} Nd6 32. Ke2 Nf5 33. Bxf5 exf5 {[%clk 01:12:41]} 34. g6
{[%clk 01:09:54]} 1-0

[Event "Ebbe Cup 48"]
[Site "Goteborgs Schackcentrum, Vegatan 20, Gothenburg, Sweden"]
[Date "2025.02.14"]
[Round "1.5"]
[White "Hamsten, Martin"]
[Black "Gustavsson, Ville"]
[Result "1/2-1/2"]
[TimeControl "90 minutes + 30 seconds per move from move one"]
[WhiteFideId "1780425"]
[BlackFideId "1792822"]
[WhiteElo "1669"]
[BlackElo "1884"]

1. e4 {[%clk 01:30:58]} {[%emt 00:00:02]} c6 {[%clk 01:31:00]} 2. d4 {[%clk
01:31:22]} {[%emt 00:00:05]} d5 {[%clk 01:31:25]} {[%emt 00:00:05]} 3. e5
{[%clk 01:31:37]} {[%emt 00:00:15]} c5 {[%clk 01:31:44]} {[%emt 00:00:11]} 4.
dxc5 {[%clk 01:32:01]} {[%emt 00:00:06]} Nc6 {[%clk 01:31:59]} {[%emt
00:00:16]} 5. Nf3 {[%clk 01:31:59]} {[%emt 00:00:32]} Bg4 {[%clk 01:31:18]}
{[%emt 00:01:10]} 6. Be2 {[%clk 01:32:11]} {[%emt 14:28:06]} e6 {[%clk
01:29:08]} 7. Bf4 {[%clk 01:30:27]} Bxc5 {[%clk 01:28:05]} 8. Nbd2 {[%clk
01:29:58]} Qb6 {[%clk 01:23:21]} 9. O-O {[%clk 01:30:05]} Qxb2 {[%clk
01:18:38]} 10. Rb1 {[%clk 01:29:01]} Qxa2 {[%clk 01:17:53]} 11. Rxb7 {[%clk
01:28:30]} Nge7 {[%clk 01:09:27]} 12. Nb3 {[%clk 01:22:53]} Bb6 {[%clk
01:01:57]} 13. Bb5 {[%clk 01:19:29]} O-O {[%clk 00:53:07]} 14. h3 {[%clk
01:08:31]} Bf5 {[%clk 00:39:57]} 15. Nbd4 {[%clk 01:04:34]} Nxd4 {[%clk
00:35:39]} 16. Nxd4 {[%clk 01:03:52]} Bxd4 {[%clk 00:35:36]} 17. Qxd4 {[%clk
01:03:16]} Rfb8 {[%clk 00:32:23]} 18. Ra1 {[%clk 01:01:29]} Qxa1+ {[%clk
00:27:21]} 19. Qxa1 {[%clk 01:01:49]} Rxb7 {[%clk 00:27:43]} 20. Ba6 {[%clk
00:59:50]} Rc7 {[%clk 00:22:34]} 21. Bd3 {[%clk 00:56:59]} Rac8 {[%clk
00:18:25]} 22. g4 {[%clk 00:55:20]} Bxd3 {[%clk 00:17:35]} 23. cxd3 {[%clk
00:55:48]} Ng6 {[%clk 00:16:58]} 24. Be3 {[%clk 00:55:44]} Rc3 {[%clk
00:14:24]} 25. d4 {[%clk 00:55:28]} R8c7 {[%clk 00:12:45]} 26. Qa4 {[%clk
00:55:28]} Nf8 {[%clk 00:11:59]} 27. Bd2 {[%clk 00:55:21]} R3c4 {[%clk
00:11:18]} 28. Qa5 {[%clk 00:55:33]} Nd7 {[%clk 00:10:36]} 29. Bb4 {[%clk
00:55:16]} Nb6 {[%clk 00:10:06]} 30. Bc5 {[%clk 00:55:05]} Rb7 {[%clk
00:05:34]} 31. Qb5 {[%clk 00:54:55]} h6 {[%clk 00:04:55]} 32. f4 {[%clk
00:54:37]} Rc1+ {[%clk 00:03:51]} 33. Kg2 {[%clk 00:55:05]} Ra1 {[%clk
00:04:14]} 34. Qc6 {[%clk 00:55:11]} Rb8 {[%clk 00:04:11]} 35. f5 {[%clk
00:55:21]} Nc4 {[%clk 00:04:20]} 36. Qc7 {[%clk 00:55:18]} Rab1 {[%clk
00:03:49]} 37. fxe6 {[%clk 00:55:34]} R8b2+ {[%clk 00:03:38]} 38. Kg3 {[%clk
00:56:01]} Rg1+ {[%clk 00:02:14]} 39. Kh4 {[%clk 00:56:29]} g5+ {[%clk
00:02:20]} 40. Kh5 {[%clk 00:56:45]} fxe6 {[%clk 00:02:05]} 41. Qd8+ {[%clk
00:57:09]} Kh7 {[%clk 00:02:19]} 42. Qe7+ {[%clk 00:57:29]} Kh8 {[%clk
00:02:39]} 43. Qf8+ {[%clk 00:57:47]} Kh7 1/2-1/2

[Event "Ebbe Cup 48"]
[Site "Goteborgs Schackcentrum, Vegatan 20, Gothenburg, Sweden"]
[Date "2025.02.14"]
[Round "1.6"]
[White "Havner, Arvid"]
[Black "Hernebring, Marten"]
[Result "1-0"]
[TimeControl "90 minutes + 30 seconds per move from move one"]
[WhiteFideId "1769308"]
[BlackFideId "1776894"]
[WhiteElo "1881"]
[BlackElo "1663"]

1. Nc3 {[%clk 01:30:49]} {[%emt 00:00:11]} d5 {[%clk 01:30:37]} {[%emt
00:00:23]} 2. e4 {[%clk 01:31:12]} {[%emt 00:00:06]} d4 {[%clk 01:28:57]}
{[%emt 00:02:10]} 3. Nce2 {[%clk 01:31:19]} {[%emt 14:27:38]} c5 {[%clk
01:27:11]} 4. Ng3 {[%clk 01:31:35]} g6 {[%clk 01:20:37]} 5. Bc4 {[%clk
01:31:33]} Nd7 {[%clk 01:19:59]} 6. d3 {[%clk 01:30:08]} Bg7 {[%clk 01:18:29]}
7. f4 {[%clk 01:30:11]} e6 {[%clk 01:12:01]} 8. Nf3 {[%clk 01:30:00]} b5 {[%clk
01:11:56]} 9. Bb3 {[%clk 01:28:43]} Ne7 {[%clk 01:09:16]} 10. a4 {[%clk
01:28:20]} bxa4 {[%clk 01:07:36]} 11. Bxa4 {[%clk 01:28:05]} O-O {[%clk
01:06:34]} 12. O-O {[%clk 01:28:16]} Nb6 {[%clk 01:06:08]} 13. Bb3 {[%clk
01:28:01]} a5 {[%clk 01:05:30]} 14. h4 {[%clk 01:17:27]} a4 {[%clk 01:02:55]}
15. Ba2 {[%clk 01:17:41]} h6 {[%clk 00:59:47]} 16. h5 {[%clk 01:14:44]} Kh7
{[%clk 00:59:56]} 17. Nh4 {[%clk 01:10:54]} Nc6 {[%clk 00:53:53]} 18. Qg4
{[%clk 01:04:43]} Qe8 {[%clk 00:53:32]} 19. Bd2 {[%clk 00:57:05]} Bf6 {[%clk
00:46:13]} 20. hxg6+ {[%clk 00:43:37]} fxg6 {[%clk 00:43:13]} 21. f5 {[%clk
00:40:40]} g5 {[%clk 00:39:15]} 22. Ng6 {[%clk 00:40:40]} Rg8 {[%clk 00:38:22]}
23. Nh5 {[%clk 00:38:18]} Bd8 {[%clk 00:37:44]} 24. Rf3 {[%clk 00:34:33]} Rxg6
{[%clk 00:34:55]} 25. fxg6+ {[%clk 00:34:51]} Qxg6 {[%clk 00:35:13]} 26. Raf1
{[%clk 00:34:30]} Ne5 {[%clk 00:31:38]} 27. Qg3 {[%clk 00:29:04]} Nxf3+ {[%clk
00:27:51]} 28. Qxf3 {[%clk 00:29:28]} Ra7 {[%clk 00:24:35]} 29. Qf8 {[%clk
00:26:00]} Qxh5 {[%clk 00:23:51]} 30. Qxd8 {[%clk 00:26:16]} Qe2 {[%clk
00:18:42]} 31. Qxb6 {[%clk 00:25:57]} Rb7 {[%clk 00:17:55]} 32. Qxc5 {[%clk
00:24:01]} Qxd2 {[%clk 00:15:09]} 33. Qxc8 {[%clk 00:24:22]} Rxb2 {[%clk
00:14:20]} 34. Qd7+ {[%clk 00:24:40]} Kg8 {[%clk 00:12:55]} 35. Qxe6+ {[%clk
00:25:00]} 1-0

[Event "Ebbe Cup 48"]
[Site "Goteborgs Schackcentrum, Vegatan 20, Gothenburg, Sweden"]
[Date "2025.02.14"]
[Round "1.7"]
[White "Sivarama, Saadhvik"]
[Black "Madevan Vaishnavi, Yaashvan"]
[Result "1/2-1/2"]
[TimeControl "90 minutes + 30 seconds per move from move one"]
[WhiteFideId "1773720"]
[BlackFideId "1772180"]
[WhiteElo "1657"]
[BlackElo "1867"]

1. e4 {[%clk 01:30:44]} {[%emt 00:00:15]} c5 {[%clk 01:30:32]} {[%emt
00:00:29]} 2. Nf3 {[%clk 01:30:43]} {[%emt 00:00:31]} g6 {[%clk 01:30:30]}
{[%emt 00:00:31]} 3. Bc4 {[%clk 01:29:22]} {[%emt 14:28:51]} d6 {[%clk
01:30:17]} 4. d4 {[%clk 01:28:03]} cxd4 {[%clk 01:30:39]} 5. Nxd4 {[%clk
01:28:26]} Nf6 {[%clk 01:30:55]} 6. Nc3 {[%clk 01:26:50]} Bg7 {[%clk 01:30:42]}
7. O-O {[%clk 01:26:15]} O-O {[%clk 01:30:53]} 8. Be3 {[%clk 01:24:35]} Nc6
{[%clk 01:30:39]} 9. Bd5 {[%clk 01:21:02]} Bd7 {[%clk 01:29:26]} 10. Bb3 {[%clk
01:18:43]} Rc8 {[%clk 01:26:43]} 11. Qd2 {[%clk 01:12:23]} a6 {[%clk 01:22:17]}
12. Rad1 {[%clk 01:07:38]} b5 {[%clk 01:17:31]} 13. Qe2 {[%clk 01:05:14]} Na5
{[%clk 01:12:47]} 14. Nf3 {[%clk 01:03:02]} b4 {[%clk 01:06:56]} 15. Nd5 {[%clk
01:02:37]} Bb5 {[%clk 01:01:49]} 16. Qd2 {[%clk 00:51:59]} Nxb3 {[%clk
00:59:36]} 17. cxb3 {[%clk 00:50:29]} Nxd5 {[%clk 00:57:18]} 18. exd5 {[%clk
00:49:08]} Bxf1 {[%clk 00:57:08]} 19. Kxf1 {[%clk 00:49:13]} a5 {[%clk
00:56:39]} 20. Nd4 {[%clk 00:48:30]} Qd7 {[%clk 00:54:53]} 21. Nc6 {[%clk
00:47:30]} e6 {[%clk 00:44:37]} 22. Nxa5 {[%clk 00:42:03]} exd5 {[%clk
00:44:08]} 23. Qxd5 {[%clk 00:40:54]} Bxb2 {[%clk 00:44:15]} 24. Nc4 {[%clk
00:40:56]} Bg7 {[%clk 00:42:41]} 25. Nb6 {[%clk 00:41:18]} Qc7 {[%clk
00:42:42]} 26. Nxc8 {[%clk 00:40:51]} Rxc8 {[%clk 00:43:08]} 27. Qxd6 {[%clk
00:39:55]} Qxd6 {[%clk 00:43:24]} 28. Rxd6 {[%clk 00:40:18]} Bf8 {[%clk
00:43:36]} 29. Ra6 {[%clk 00:39:35]} h5 {[%clk 00:42:19]} 30. Bf4 {[%clk
00:38:26]} Rd8 {[%clk 00:41:17]} 31. Rb6 {[%clk 00:37:28]} Kg7 {[%clk
00:39:36]} 32. Ke2 {[%clk 00:35:46]} Ra8 {[%clk 00:38:16]} 33. Be5+ {[%clk
00:33:49]} Kh7 {[%clk 00:37:28]} 34. Rb8 {[%clk 00:33:47]} Rxa2+ {[%clk
00:37:53]} 35. Kd3 {[%clk 00:33:13]} Bg7 {[%clk 00:38:19]} 36. Bxg7 {[%clk
00:33:06]} Kxg7 {[%clk 00:38:46]} 37. Ke3 {[%clk 00:33:23]} Rb2 {[%clk
00:39:06]} 38. Rxb4 {[%clk 00:33:41]} Kf6 {[%clk 00:39:32]} 39. g3 {[%clk
00:33:16]} Kf5 {[%clk 00:39:27]} 40. h4 {[%clk 00:33:03]} f6 {[%clk 00:39:39]}
41. Rb5+ {[%clk 00:32:58]} Kg4 {[%clk 00:39:07]} 42. Rb6 {[%clk 00:32:47]} g5
{[%clk 00:38:51]} 43. hxg5 {[%clk 00:32:24]} fxg5 {[%clk 00:37:32]} 44. Rb4+
{[%clk 00:31:37]} Kh3 {[%clk 00:37:42]} 45. Kf3 {[%clk 00:30:47]} h4 {[%clk
00:37:18]} 46. gxh4 {[%clk 00:30:25]} gxh4 {[%clk 00:37:43]} 47. Ke3 {[%clk
00:29:10]} Kg2 {[%clk 00:38:00]} 48. Rxh4 {[%clk 00:28:22]} Rxb3+ {[%clk
00:38:23]} 49. Ke2 {[%clk 00:28:03]} Rb2+ {[%clk 00:38:44]} 50. Ke3 {[%clk
00:28:28]} Rb3+ {[%clk 00:39:10]} 51. Kd2 {[%clk 00:28:10]} Kxf2 {[%clk
00:39:06]} 1/2-1/2

[Event "Ebbe Cup 48"]
[Site "Goteborgs Schackcentrum, Vegatan 20, Gothenburg, Sweden"]
[Date "2025.02.14"]
[Round "1.8"]
[White "Brodocz, Bartosz"]
[Black "Hassinge, Ove"]
[Result "1-0"]
[TimeControl "90 minutes + 30 seconds per move from move one"]
[WhiteFideId "21025894"]
[BlackFideId "1774530"]
[WhiteElo "1821"]
[BlackElo "1655"]

1. e4 {[%clk 01:30:58]} {[%emt 00:00:02]} c5 {[%clk 01:30:50]} {[%emt
00:00:10]} 2. c3 {[%clk 01:31:22]} {[%emt 00:00:06]} d5 {[%clk 01:31:08]}
{[%emt 00:00:12]} 3. exd5 {[%clk 01:31:46]} {[%emt 00:00:06]} Qxd5 {[%clk
01:31:24]} {[%emt 00:00:14]} 4. d4 {[%clk 01:32:00]} {[%emt 00:00:16]} cxd4
{[%clk 01:31:42]} {[%emt 00:00:11]} 5. cxd4 {[%clk 01:32:22]} {[%emt 00:00:08]}
e5 {[%clk 01:31:39]} {[%emt 00:00:34]} 6. Nf3 {[%clk 01:31:05]} {[%emt
14:28:43]} exd4 {[%clk 01:30:54]} 7. Nxd4 {[%clk 01:30:37]} Bc5 {[%clk
01:26:44]} 8. Be3 {[%clk 01:28:25]} Nf6 {[%clk 01:23:29]} 9. Nc3 {[%clk
01:28:21]} Qd8 {[%clk 01:23:37]} 10. Ndb5 {[%clk 01:24:00]} Qe7 {[%clk
01:20:40]} 11. Be2 {[%clk 01:11:32]} O-O {[%clk 01:10:12]} 12. Bxc5 {[%clk
01:10:45]} Qxc5 {[%clk 01:09:55]} 13. O-O {[%clk 01:10:53]} a6 {[%clk
01:08:11]} 14. Na4 {[%clk 01:04:49]} Qd5 {[%clk 01:00:43]} 15. Nb6 {[%clk
01:02:49]} Qe5 {[%clk 00:52:39]} 16. Nxa8 {[%clk 00:58:58]} axb5 {[%clk
00:52:41]} 17. Rc1 {[%clk 00:56:47]} Qxb2 {[%clk 00:48:25]} 18. Qc2 {[%clk
00:54:27]} Qe5 {[%clk 00:42:27]} 19. Rfe1 {[%clk 00:54:04]} Bf5 {[%clk
00:41:18]} 20. Bd3 {[%clk 00:51:52]} Bxd3 {[%clk 00:37:04]} 21. Qxd3 {[%clk
00:52:11]} Qg5 {[%clk 00:33:53]} 22. Qd6 {[%clk 00:49:10]} Nbd7 {[%clk
00:33:05]} 23. Nb6 {[%clk 00:47:50]} Qf5 {[%clk 00:24:27]} 24. Nxd7 {[%clk
00:47:27]} Nxd7 {[%clk 00:24:22]} 25. Rc7 {[%clk 00:46:19]} Nf6 {[%clk
00:23:50]} 26. Rxb7 {[%clk 00:45:58]} h5 {[%clk 00:23:49]} 27. Qxf8+ {[%clk
00:44:55]} 1-0

[Event "Ebbe Cup 48"]
[Site "Goteborgs Schackcentrum, Vegatan 20, Gothenburg, Sweden"]
[Date "2025.02.14"]
[Round "1.9"]
[White "Gallon, John"]
[Black "Bergdahl, Daniel"]
[Result "0-1"]
[TimeControl "90 minutes + 30 seconds per move from move one"]
[WhiteFideId "1783661"]
[BlackFideId "1780921"]
[WhiteElo "1651"]
[BlackElo "1818"]

1. e4 {[%clk 01:30:56]} {[%emt 00:00:04]} c6 {[%clk 01:30:52]} {[%emt
00:00:09]} 2. d4 {[%clk 01:31:21]} {[%emt 00:00:05]} d5 {[%clk 01:31:16]}
{[%emt 00:00:05]} 3. exd5 {[%clk 01:31:47]} {[%emt 00:00:04]} cxd5 {[%clk
01:31:39]} {[%emt 00:00:07]} 4. h3 {[%clk 01:32:11]} {[%emt 00:00:06]} Nc6
{[%clk 01:31:46]} {[%emt 00:00:23]} 5. Nf3 {[%clk 01:32:20]} {[%emt 00:00:20]}
Nf6 {[%clk 01:31:26]} {[%emt 00:00:50]} 6. Bd3 {[%clk 01:31:52]} {[%emt
14:28:24]} e6 {[%clk 01:30:30]} 7. Bf4 {[%clk 01:20:22]} Qb6 {[%clk 01:27:38]}
8. b3 {[%clk 00:57:28]} Ne4 {[%clk 01:24:52]} 9. c3 {[%clk 00:53:31]} Ne7
{[%clk 01:15:27]} 10. Qe2 {[%clk 00:33:39]} Nd6 {[%clk 01:05:53]} 11. O-O
{[%clk 00:28:57]} a6 {[%clk 01:04:39]} 12. Rd1 {[%clk 00:15:32]} Bd7 {[%clk
01:02:25]} 13. c4 {[%clk 00:11:32]} dxc4 {[%clk 01:00:27]} 14. bxc4 {[%clk
00:05:57]} Ng6 {[%clk 00:59:47]} 15. Bxg6 {[%clk 00:04:15]} hxg6 {[%clk
00:59:30]} 16. Nc3 {[%clk 00:01:24]} Qa5 {[%clk 00:58:52]} 17. Rac1 {[%clk
00:00:37]} Rc8 {[%clk 00:58:04]} 18. Nd5 {[%clk 00:00:31]} Ba4 {[%clk
00:56:43]} 19. Rd3 {[%clk 00:00:31]} Bc6 {[%clk 00:55:49]} 20. Rdc3 {[%clk
00:00:33]} Bxd5 {[%clk 00:55:59]} 21. cxd5 {[%clk 00:00:33]} Rxc3 {[%clk
00:56:14]} 22. Rxc3 {[%clk 00:00:31]} Qxc3 {[%clk 00:56:28]} 23. dxe6 {[%clk
00:00:58]} g5 {[%clk 00:53:06]} 24. Bxg5 {[%clk 00:00:31]} f6 {[%clk 00:53:00]}
25. Bf4 {[%clk 00:00:41]} Be7 {[%clk 00:52:39]} 0-1